[Event "Titled Tuesday Blitz January 25 2022"]
[White "Nguyen, Hong Ngoc"]
[Black "Putnam, Liam"]
[WhiteFideId "12403083"]
[BlackFideId "30938279"]
[WhiteElo "1830"]
[BlackElo "2035"]
[Result "1-0"]
[Round "11"]
[TimeControl "180+1"]
[Date "2022.01.26"]
[WhiteClock "0:00:46"]
[BlackClock "0:00:15"]

1. e4 {[%clk 0:03:00]}  c6 {[%clk 0:02:44]} 2. Nc3 {[%clk 0:03:00]}  d5 {[%clk 0:02:44]} 3. Nf3 {[%clk 0:03:00]}  Bg4 {[%clk 0:02:42]} 4. h3 {[%clk 0:02:59]}  Bh5 {[%clk 0:02:39]} 5. exd5 {[%clk 0:02:59]}  cxd5 {[%clk 0:02:40]} 6. Bb5+ {[%clk 0:02:59]}  Nc6 {[%clk 0:02:39]} 7. g4 {[%clk 0:02:59]}  Bg6 {[%clk 0:02:38]} 8. Ne5 {[%clk 0:03:00]}  Rc8 {[%clk 0:02:30]} 9. h4 {[%clk 0:02:57]}  f6 {[%clk 0:02:28]} 10. Nxg6 {[%clk 0:02:57]}  hxg6 {[%clk 0:02:29]} 11. d4 {[%clk 0:02:56]}  e6 {[%clk 0:02:29]} 12. Be3 {[%clk 0:02:56]}  Kf7 {[%clk 0:02:28]} 13. a3 {[%clk 0:02:50]}  Bd6 {[%clk 0:02:26]} 14. Ne2 {[%clk 0:02:49]}  Nge7 {[%clk 0:02:23]} 15. Bd3 {[%clk 0:02:48]}  e5 {[%clk 0:02:22]} 16. c3 {[%clk 0:02:48]}  e4 {[%clk 0:02:21]} 17. Bc2 {[%clk 0:02:48]}  Na5 {[%clk 0:02:19]} 18. b3 {[%clk 0:02:48]}  Qd7 {[%clk 0:02:14]} 19. c4 {[%clk 0:02:37]}  dxc4 {[%clk 0:02:06]} 20. b4 {[%clk 0:02:37]}  Nac6 {[%clk 0:01:59]} 21. Bxe4 {[%clk 0:02:37]}  Qxg4 {[%clk 0:01:58]} 22. f3 {[%clk 0:02:35]}  Qd7 {[%clk 0:01:49]} 23. Qd2 {[%clk 0:02:23]}  f5 {[%clk 0:01:45]} 24. Bc2 {[%clk 0:02:23]}  Nd5 {[%clk 0:01:44]} 25. Bg5 {[%clk 0:02:18]}  Rhe8 {[%clk 0:01:43]} 26. Kf2 {[%clk 0:02:13]}  Re6 {[%clk 0:01:38]} 27. Rae1 {[%clk 0:02:08]}  Rce8 {[%clk 0:01:34]} 28. Nc3 {[%clk 0:02:06]}  Rxe1 {[%clk 0:01:28]} 29. Rxe1 {[%clk 0:02:05]}  Rxe1 {[%clk 0:01:29]} 30. Qxe1 {[%clk 0:02:04]}  Nxc3 {[%clk 0:01:27]} 31. Qxc3 {[%clk 0:02:05]}  Qe6 {[%clk 0:01:27]} 32. b5 {[%clk 0:02:00]}  Nb8 {[%clk 0:01:19]} 33. a4 {[%clk 0:01:52]}  Nd7 {[%clk 0:01:17]} 34. Bb1 {[%clk 0:01:51]}  Nb6 {[%clk 0:01:16]} 35. Ba2 {[%clk 0:01:49]}  Nxa4 {[%clk 0:01:08]} 36. Qxc4 {[%clk 0:01:48]}  Qxc4 {[%clk 0:01:08]} 37. Bxc4+ {[%clk 0:01:49]}  Kf8 {[%clk 0:01:09]} 38. Bd5 {[%clk 0:01:47]}  b6 {[%clk 0:01:08]} 39. Bc6 {[%clk 0:01:47]}  Be7 {[%clk 0:01:07]} 40. Bf4 {[%clk 0:01:37]}  Bxh4+ {[%clk 0:00:58]} 41. Ke2 {[%clk 0:01:33]}  Bd8 {[%clk 0:00:54]} 42. Bc1 {[%clk 0:01:27]}  Nc3+ {[%clk 0:00:49]} 43. Kd3 {[%clk 0:01:27]}  Na2 {[%clk 0:00:50]} 44. Bd2 {[%clk 0:01:23]}  Be7 {[%clk 0:00:46]} 45. Kc4 {[%clk 0:01:23]}  Ba3 {[%clk 0:00:39]} 46. Kb3 {[%clk 0:01:06]}  Bc1 {[%clk 0:00:38]} 47. Be1 {[%clk 0:01:05]}  Be3 {[%clk 0:00:37]} 48. Kxa2 {[%clk 0:01:05]}  Bxd4 {[%clk 0:00:37]} 49. Kb3 {[%clk 0:01:04]}  Ke7 {[%clk 0:00:36]} 50. Kc4 {[%clk 0:01:04]}  Be5 {[%clk 0:00:35]} 51. Kd5 {[%clk 0:01:04]}  Bc7 {[%clk 0:00:34]} 52. Bb4+ {[%clk 0:01:02]}  Kf6 {[%clk 0:00:33]} 53. Bc3+ {[%clk 0:01:02]}  Kf7 {[%clk 0:00:32]} 54. Be5 {[%clk 0:01:02]}  Bd8 {[%clk 0:00:29]} 55. Bd7 {[%clk 0:01:02]}  Bf6 {[%clk 0:00:22]} 56. Bb8 {[%clk 0:01:01]}  Ke7 {[%clk 0:00:21]} 57. Be6 {[%clk 0:01:00]}  Kd8 {[%clk 0:00:19]} 58. Kc6 {[%clk 0:00:48]}  Ke7 {[%clk 0:00:18]} 59. Bc8 {[%clk 0:00:48]}  g5 {[%clk 0:00:17]} 60. Bxf5 {[%clk 0:00:47]}  Bd4 {[%clk 0:00:15]} 61. Bxa7 {[%clk 0:00:46]} 1-0


[Site "https://www.chess.com"]

[Event "Titled Tuesday Blitz January 25 2022"]
[White "Odegov, Artem"]
[Black "Gelman, Alexander"]
[WhiteFideId "34183644"]
[BlackFideId "4118316"]
[WhiteElo "2277"]
[BlackElo "2375"]
[Result "0-1"]
[Round "11"]
[TimeControl "180+1"]
[Date "2022.01.26"]
[WhiteClock "0:00:29"]
[BlackClock "0:00:40"]

1. d4 {[%clk 0:02:55]}  Nf6 {[%clk 0:02:59]} 2. c4 {[%clk 0:02:55]}  c5 {[%clk 0:03:00]} 3. d5 {[%clk 0:02:55]}  b5 {[%clk 0:03:00]} 4. a4 {[%clk 0:02:56]}  b4 {[%clk 0:02:58]} 5. Nd2 {[%clk 0:02:55]}  g6 {[%clk 0:02:58]} 6. e4 {[%clk 0:02:56]}  d6 {[%clk 0:02:58]} 7. Ngf3 {[%clk 0:02:54]}  Bg7 {[%clk 0:02:58]} 8. Bd3 {[%clk 0:02:55]}  O-O {[%clk 0:02:58]} 9. O-O {[%clk 0:02:55]}  Nbd7 {[%clk 0:02:33]} 10. Re1 {[%clk 0:02:47]}  e5 {[%clk 0:02:18]} 11. Nf1 {[%clk 0:02:45]}  Nh5 {[%clk 0:02:17]} 12. b3 {[%clk 0:02:33]}  h6 {[%clk 0:02:08]} 13. Ne3 {[%clk 0:02:24]}  Nf4 {[%clk 0:02:03]} 14. Bb2 {[%clk 0:02:16]}  Nf6 {[%clk 0:02:02]} 15. Qd2 {[%clk 0:02:06]}  Nxd3 {[%clk 0:01:59]} 16. Qxd3 {[%clk 0:02:05]}  Nh5 {[%clk 0:01:56]} 17. Rad1 {[%clk 0:02:04]}  Bd7 {[%clk 0:01:55]} 18. Qd2 {[%clk 0:02:03]}  Nf4 {[%clk 0:01:52]} 19. Bc1 {[%clk 0:01:48]}  f5 {[%clk 0:01:20]} 20. Nf1 {[%clk 0:01:32]}  fxe4 {[%clk 0:01:14]} 21. Rxe4 {[%clk 0:01:32]}  Bg4 {[%clk 0:01:13]} 22. Re3 {[%clk 0:01:21]}  Qf6 {[%clk 0:01:07]} 23. Ng3 {[%clk 0:01:20]}  Nxg2 {[%clk 0:01:04]} 24. Ne4 {[%clk 0:00:46]}  Qf4 {[%clk 0:00:41]} 25. Kxg2 {[%clk 0:00:29]}  Bxf3+ {[%clk 0:00:41]} 26. Kf1 {[%clk 0:00:29]}  Bxe4 {[%clk 0:00:40]} 0-1


[Site "https://www.chess.com"]

[Event "Titled Tuesday Blitz January 25 2022"]
[White "Ovetchkin, Roman"]
[Black "Piesik, Piotr"]
[WhiteFideId "4119991"]
[BlackFideId "1136194"]
[WhiteElo "2409"]
[BlackElo "2232"]
[Result "1/2-1/2"]
[Round "11"]
[TimeControl "180+1"]
[Date "2022.01.26"]
[WhiteClock "0:00:20"]
[BlackClock "0:01:00"]

1. d4 {[%clk 0:03:00]}  c5 {[%clk 0:02:58]} 2. d5 {[%clk 0:03:00]}  e5 {[%clk 0:02:58]} 3. e4 {[%clk 0:02:59]}  d6 {[%clk 0:02:59]} 4. Bb5+ {[%clk 0:02:58]}  Nd7 {[%clk 0:02:59]} 5. a4 {[%clk 0:02:58]}  Be7 {[%clk 0:02:59]} 6. Nf3 {[%clk 0:02:57]}  Nf6 {[%clk 0:02:59]} 7. Nc3 {[%clk 0:02:57]}  O-O {[%clk 0:02:59]} 8. O-O {[%clk 0:02:56]}  Ne8 {[%clk 0:02:59]} 9. Bd3 {[%clk 0:02:50]}  Nc7 {[%clk 0:02:40]} 10. Nd2 {[%clk 0:02:39]}  Bg5 {[%clk 0:02:39]} 11. Nc4 {[%clk 0:02:38]}  Bxc1 {[%clk 0:02:39]} 12. Qxc1 {[%clk 0:02:38]}  Qe7 {[%clk 0:02:38]} 13. f4 {[%clk 0:02:23]}  exf4 {[%clk 0:02:38]} 14. Qxf4 {[%clk 0:02:22]}  Ne5 {[%clk 0:02:37]} 15. Nxe5 {[%clk 0:02:13]}  Qxe5 {[%clk 0:02:38]} 16. Qxe5 {[%clk 0:02:12]}  dxe5 {[%clk 0:02:39]} 17. Nd1 {[%clk 0:02:03]}  Ne8 {[%clk 0:02:37]} 18. Ne3 {[%clk 0:02:03]}  Nd6 {[%clk 0:02:37]} 19. a5 {[%clk 0:02:00]}  Bd7 {[%clk 0:02:35]} 20. c4 {[%clk 0:01:54]}  Rfb8 {[%clk 0:02:19]} 21. Ra3 {[%clk 0:01:40]}  b5 {[%clk 0:02:13]} 22. axb6 {[%clk 0:01:39]}  Rxb6 {[%clk 0:02:11]} 23. b3 {[%clk 0:01:26]}  a5 {[%clk 0:02:09]} 24. Rfa1 {[%clk 0:01:26]}  a4 {[%clk 0:02:09]} 25. bxa4 {[%clk 0:01:24]}  Ra5 {[%clk 0:02:06]} 26. Bc2 {[%clk 0:01:16]}  Rb2 {[%clk 0:02:00]} 27. R1a2 {[%clk 0:01:10]}  Rxa2 {[%clk 0:01:57]} 28. Rxa2 {[%clk 0:01:10]}  Kf8 {[%clk 0:01:57]} 29. Kf2 {[%clk 0:01:06]}  Ke7 {[%clk 0:01:55]} 30. Ke2 {[%clk 0:01:05]}  g6 {[%clk 0:01:54]} 31. g4 {[%clk 0:01:03]}  Nc8 {[%clk 0:01:46]} 32. Rb2 {[%clk 0:00:51]}  Bxa4 {[%clk 0:01:37]} 33. Bxa4 {[%clk 0:00:50]}  Rxa4 {[%clk 0:01:37]} 34. Rb7+ {[%clk 0:00:51]}  Ke8 {[%clk 0:01:35]} 35. Rc7 {[%clk 0:00:51]}  Nd6 {[%clk 0:01:34]} 36. Rxc5 {[%clk 0:00:45]}  Nxe4 {[%clk 0:01:34]} 37. Rc7 {[%clk 0:00:45]}  Ra2+ {[%clk 0:01:15]} 38. Kf3 {[%clk 0:00:19]}  Ng5+ {[%clk 0:01:05]} 39. Kg3 {[%clk 0:00:19]}  Ne4+ {[%clk 0:01:05]} 40. Kf3 {[%clk 0:00:19]}  Ng5+ {[%clk 0:01:01]} 41. Kg3 {[%clk 0:00:19]}  Ne4+ {[%clk 0:01:00]} 42. Kf3 {[%clk 0:00:20]} 1/2-1/2


[Site "https://www.chess.com"]

[Event "Titled Tuesday Blitz January 25 2022"]
[White "Padmini, Rout"]
[Black "Senthil Maran K"]
[WhiteFideId "5029295"]
[BlackFideId "25035681"]
[WhiteElo "2181"]
[BlackElo "2194"]
[Result "1-0"]
[Round "11"]
[TimeControl "180+1"]
[Date "2022.01.26"]
[WhiteClock "0:00:17"]
[BlackClock "0:00:02"]

1. Nf3 {[%clk 0:03:00]}  d5 {[%clk 0:02:59]} 2. g3 {[%clk 0:03:01]}  g6 {[%clk 0:02:58]} 3. Bg2 {[%clk 0:03:00]}  Bg7 {[%clk 0:02:58]} 4. d4 {[%clk 0:03:01]}  Nf6 {[%clk 0:02:58]} 5. O-O {[%clk 0:03:02]}  Nbd7 {[%clk 0:02:59]} 6. c4 {[%clk 0:02:52]}  dxc4 {[%clk 0:02:59]} 7. Na3 {[%clk 0:02:52]}  Nb6 {[%clk 0:02:59]} 8. Ne5 {[%clk 0:02:51]}  O-O {[%clk 0:02:42]} 9. Naxc4 {[%clk 0:02:50]}  Ng4 {[%clk 0:02:18]} 10. e3 {[%clk 0:02:31]}  Nxe5 {[%clk 0:02:11]} 11. Nxe5 {[%clk 0:02:30]}  Bxe5 {[%clk 0:02:01]} 12. dxe5 {[%clk 0:02:30]}  Qxd1 {[%clk 0:01:59]} 13. Rxd1 {[%clk 0:02:31]}  Bg4 {[%clk 0:01:54]} 14. Rd4 {[%clk 0:02:27]}  Bc8 {[%clk 0:01:46]} 15. b3 {[%clk 0:02:26]}  c6 {[%clk 0:01:40]} 16. Ba3 {[%clk 0:02:10]}  Re8 {[%clk 0:01:40]} 17. Rad1 {[%clk 0:02:04]}  Be6 {[%clk 0:01:37]} 18. e4 {[%clk 0:01:56]}  Rac8 {[%clk 0:01:23]} 19. Bc5 {[%clk 0:01:54]}  Rc7 {[%clk 0:01:13]} 20. f4 {[%clk 0:01:27]}  Nd7 {[%clk 0:01:10]} 21. Ba3 {[%clk 0:01:25]}  c5 {[%clk 0:01:04]} 22. R4d2 {[%clk 0:01:25]}  b6 {[%clk 0:00:58]} 23. Bf3 {[%clk 0:01:24]}  h5 {[%clk 0:00:57]} 24. Kg2 {[%clk 0:01:23]}  Nb8 {[%clk 0:00:52]} 25. h3 {[%clk 0:01:02]}  Nc6 {[%clk 0:00:44]} 26. g4 {[%clk 0:01:02]}  hxg4 {[%clk 0:00:19]} 27. hxg4 {[%clk 0:01:03]}  f5 {[%clk 0:00:12]} 28. exf6 {[%clk 0:00:59]}  exf6 {[%clk 0:00:12]} 29. Bb2 {[%clk 0:00:56]}  Kf7 {[%clk 0:00:11]} 30. Rd6 {[%clk 0:00:45]}  g5 {[%clk 0:00:10]} 31. e5 {[%clk 0:00:37]}  Nd4 {[%clk 0:00:10]} 32. f5 {[%clk 0:00:31]}  Bc8 {[%clk 0:00:07]} 33. Rxf6+ {[%clk 0:00:30]}  Kg7 {[%clk 0:00:07]} 34. Rg6+ {[%clk 0:00:28]}  Kf8 {[%clk 0:00:06]} 35. e6 {[%clk 0:00:26]}  Nxf3 {[%clk 0:00:03]} 36. Kxf3 {[%clk 0:00:27]}  Bb7+ {[%clk 0:00:04]} 37. Kg3 {[%clk 0:00:26]}  Rh7 {[%clk 0:00:03]} 38. Rxg5 {[%clk 0:00:20]}  Ke7 {[%clk 0:00:02]} 39. Rd7+ {[%clk 0:00:18]}  Kf8 {[%clk 0:00:02]} 40. Rxh7 {[%clk 0:00:18]}  Re7 {[%clk 0:00:02]} 41. Rh8# {[%clk 0:00:17]} 1-0


[Site "https://www.chess.com"]

[Event "Titled Tuesday Blitz January 25 2022"]
[White "Petrovskyi, Vadym"]
[Black "Shtyka, Sergey"]
[WhiteFideId "14165210"]
[BlackFideId "4138465"]
[WhiteElo "2424"]
[BlackElo "2014"]
[Result "1-0"]
[Round "11"]
[TimeControl "180+1"]
[Date "2022.01.26"]
[WhiteClock "0:00:34"]
[BlackClock "0:00:02"]

1. e4 {[%clk 0:02:52]}  c5 {[%clk 0:02:59]} 2. Nf3 {[%clk 0:02:52]}  d6 {[%clk 0:02:58]} 3. d4 {[%clk 0:02:53]}  cxd4 {[%clk 0:02:59]} 4. Nxd4 {[%clk 0:02:54]}  Nf6 {[%clk 0:02:59]} 5. Nc3 {[%clk 0:02:54]}  g6 {[%clk 0:02:59]} 6. h4 {[%clk 0:02:53]}  Nc6 {[%clk 0:02:27]} 7. Be2 {[%clk 0:02:50]}  h5 {[%clk 0:02:19]} 8. Be3 {[%clk 0:02:28]}  Bg7 {[%clk 0:02:19]} 9. f3 {[%clk 0:02:28]}  Bd7 {[%clk 0:02:03]} 10. Qd2 {[%clk 0:02:26]}  Rc8 {[%clk 0:02:02]} 11. O-O-O {[%clk 0:02:26]}  Qa5 {[%clk 0:01:58]} 12. Nb3 {[%clk 0:02:25]}  Qc7 {[%clk 0:01:52]} 13. Bg5 {[%clk 0:02:16]}  Be6 {[%clk 0:01:49]} 14. Kb1 {[%clk 0:01:35]}  a6 {[%clk 0:01:46]} 15. Nd5 {[%clk 0:01:32]}  Bxd5 {[%clk 0:01:44]} 16. exd5 {[%clk 0:01:33]}  Ne5 {[%clk 0:01:42]} 17. c4 {[%clk 0:01:33]}  O-O {[%clk 0:01:21]} 18. Rc1 {[%clk 0:01:25]}  Qd7 {[%clk 0:01:17]} 19. Bh6 {[%clk 0:01:25]}  Qf5+ {[%clk 0:01:07]} 20. Ka1 {[%clk 0:01:24]}  Bxh6 {[%clk 0:01:03]} 21. Qxh6 {[%clk 0:01:25]}  b5 {[%clk 0:00:50]} 22. g4 {[%clk 0:01:11]}  hxg4 {[%clk 0:00:43]} 23. Nd4 {[%clk 0:01:06]}  Qh5 {[%clk 0:00:39]} 24. Qf4 {[%clk 0:01:03]}  gxf3 {[%clk 0:00:32]} 25. Nxf3 {[%clk 0:01:04]}  bxc4 {[%clk 0:00:23]} 26. Nd4 {[%clk 0:00:56]}  Qh8 {[%clk 0:00:17]} 27. h5 {[%clk 0:00:56]}  Qg7 {[%clk 0:00:13]} 28. Rcg1 {[%clk 0:00:55]}  Nxd5 {[%clk 0:00:11]} 29. Qe4 {[%clk 0:00:47]}  Nf6 {[%clk 0:00:06]} 30. Qc2 {[%clk 0:00:47]}  c3 {[%clk 0:00:06]} 31. b3 {[%clk 0:00:47]}  Rc5 {[%clk 0:00:03]} 32. hxg6 {[%clk 0:00:47]}  fxg6 {[%clk 0:00:04]} 33. Ne6 {[%clk 0:00:45]}  Qf7 {[%clk 0:00:04]} 34. Nxc5 {[%clk 0:00:44]}  dxc5 {[%clk 0:00:05]} 35. Qxc3 {[%clk 0:00:44]}  Qe6 {[%clk 0:00:03]} 36. Rg5 {[%clk 0:00:39]}  Nfd7 {[%clk 0:00:02]} 37. Rhg1 {[%clk 0:00:38]}  Rf5 {[%clk 0:00:02]} 38. Bc4 {[%clk 0:00:33]}  Nxc4 {[%clk 0:00:01]} 39. Rxg6+ {[%clk 0:00:34]}  Qxg6 {[%clk 0:00:01]} 40. Rxg6+ {[%clk 0:00:35]}  Kf7 {[%clk 0:00:01]} 41. Qg7+ {[%clk 0:00:36]}  Ke8 {[%clk 0:00:02]} 42. Qg8+ {[%clk 0:00:35]}  Nf8 {[%clk 0:00:02]} 43. bxc4 {[%clk 0:00:35]}  Rf1+ {[%clk 0:00:02]} 44. Kb2 {[%clk 0:00:35]}  Rf2+ {[%clk 0:00:03]} 45. Kc1 {[%clk 0:00:36]}  Rf4 {[%clk 0:00:03]} 46. Rxa6 {[%clk 0:00:35]}  Kd7 {[%clk 0:00:02]} 47. Qd5+ {[%clk 0:00:34]}  Ke8 {[%clk 0:00:02]} 48. Ra8# {[%clk 0:00:34]} 1-0


[Site "https://www.chess.com"]

[Event "Titled Tuesday Blitz January 25 2022"]
[White "Piorun, Kacper"]
[Black "Le, Tuan Minh"]
[WhiteFideId "1130420"]
[BlackFideId "12401153"]
[WhiteElo "2571"]
[BlackElo "2450"]
[Result "1-0"]
[Round "11"]
[TimeControl "180+1"]
[Date "2022.01.26"]
[WhiteClock "0:00:13"]
[BlackClock "0:00:01"]

1. c4 {[%clk 0:03:00]}  c6 {[%clk 0:03:00]} 2. d4 {[%clk 0:02:56]}  d5 {[%clk 0:03:00]} 3. Nf3 {[%clk 0:02:57]}  Nf6 {[%clk 0:02:59]} 4. e3 {[%clk 0:02:57]}  Bf5 {[%clk 0:02:59]} 5. Nc3 {[%clk 0:02:49]}  e6 {[%clk 0:02:59]} 6. Be2 {[%clk 0:02:46]}  Nbd7 {[%clk 0:02:59]} 7. Nh4 {[%clk 0:02:47]}  Be4 {[%clk 0:02:59]} 8. f3 {[%clk 0:02:25]}  Bg6 {[%clk 0:02:59]} 9. Nxg6 {[%clk 0:02:24]}  hxg6 {[%clk 0:03:00]} 10. Qb3 {[%clk 0:02:24]}  Qc7 {[%clk 0:02:59]} 11. Bd2 {[%clk 0:02:24]}  Nb6 {[%clk 0:02:54]} 12. cxd5 {[%clk 0:02:23]}  exd5 {[%clk 0:02:54]} 13. O-O-O {[%clk 0:02:20]}  Rd8 {[%clk 0:02:42]} 14. Kb1 {[%clk 0:01:57]}  Be7 {[%clk 0:02:41]} 15. h4 {[%clk 0:01:52]}  Nh5 {[%clk 0:02:21]} 16. Bd3 {[%clk 0:01:32]}  Ng3 {[%clk 0:02:21]} 17. Rhe1 {[%clk 0:01:32]}  Rxh4 {[%clk 0:02:02]} 18. Bc1 {[%clk 0:01:27]}  Kf8 {[%clk 0:01:59]} 19. Bc2 {[%clk 0:01:25]}  Nc4 {[%clk 0:01:23]} 20. Ne2 {[%clk 0:01:11]}  Nxe2 {[%clk 0:01:20]} 21. Rxe2 {[%clk 0:01:12]}  b5 {[%clk 0:01:20]} 22. e4 {[%clk 0:01:11]}  dxe4 {[%clk 0:01:17]} 23. fxe4 {[%clk 0:01:11]}  Kg8 {[%clk 0:01:16]} 24. Qf3 {[%clk 0:01:08]}  Rf8 {[%clk 0:00:48]} 25. g3 {[%clk 0:00:59]}  Rh3 {[%clk 0:00:49]} 26. Bf4 {[%clk 0:00:59]}  Qa5 {[%clk 0:00:48]} 27. e5 {[%clk 0:00:51]}  Qb4 {[%clk 0:00:45]} 28. Bc1 {[%clk 0:00:51]}  Bd8 {[%clk 0:00:27]} 29. Bb3 {[%clk 0:00:41]}  Bb6 {[%clk 0:00:26]} 30. Qxc6 {[%clk 0:00:38]}  Na5 {[%clk 0:00:18]} 31. Qg2 {[%clk 0:00:25]}  Rh7 {[%clk 0:00:15]} 32. Bd5 {[%clk 0:00:23]}  Bxd4 {[%clk 0:00:11]} 33. Re4 {[%clk 0:00:22]}  Rc8 {[%clk 0:00:05]} 34. Rexd4 {[%clk 0:00:21]}  Qc5 {[%clk 0:00:05]} 35. Qf2 {[%clk 0:00:19]}  Kh8 {[%clk 0:00:04]} 36. Bxf7 {[%clk 0:00:18]}  Rf8 {[%clk 0:00:03]} 37. e6 {[%clk 0:00:18]}  Nc6 {[%clk 0:00:03]} 38. Rd8 {[%clk 0:00:15]}  Qe7 {[%clk 0:00:01]} 39. Rxf8+ {[%clk 0:00:15]}  Qxf8 {[%clk 0:00:01]} 40. Qc2 {[%clk 0:00:13]}  Ne7 {[%clk 0:00:01]} 41. Qc7 {[%clk 0:00:13]}  Qc8 {[%clk 0:00:01]} 1-0


[Site "https://www.chess.com"]

[Event "Titled Tuesday Blitz January 25 2022"]
[White "Romanchuk, Viktor"]
[Black "Kosteniuk, Alexandra"]
[WhiteFideId "14109271"]
[BlackFideId "4128125"]
[WhiteElo "2242"]
[BlackElo "2469"]
[Result "0-1"]
[Round "11"]
[TimeControl "180+1"]
[Date "2022.01.26"]
[WhiteClock "0:00:01"]
[BlackClock "0:00:15"]

1. d4 {[%clk 0:03:00]}  Nf6 {[%clk 0:02:59]} 2. c4 {[%clk 0:03:01]}  e6 {[%clk 0:02:58]} 3. Nc3 {[%clk 0:03:00]}  Bb4 {[%clk 0:02:58]} 4. e3 {[%clk 0:02:58]}  b6 {[%clk 0:02:57]} 5. Ne2 {[%clk 0:02:58]}  Ne4 {[%clk 0:02:56]} 6. Qc2 {[%clk 0:02:57]}  Bb7 {[%clk 0:02:56]} 7. a3 {[%clk 0:02:50]}  Bxc3+ {[%clk 0:02:30]} 8. Nxc3 {[%clk 0:02:51]}  Nxc3 {[%clk 0:02:30]} 9. Qxc3 {[%clk 0:02:51]}  d6 {[%clk 0:02:30]} 10. d5 {[%clk 0:02:45]}  O-O {[%clk 0:02:25]} 11. b4 {[%clk 0:01:46]}  exd5 {[%clk 0:02:23]} 12. cxd5 {[%clk 0:01:47]}  Bxd5 {[%clk 0:02:21]} 13. Bb2 {[%clk 0:01:47]}  f6 {[%clk 0:02:16]} 14. Be2 {[%clk 0:01:42]}  Nd7 {[%clk 0:02:12]} 15. O-O {[%clk 0:01:41]}  Ne5 {[%clk 0:02:06]} 16. f3 {[%clk 0:01:40]}  Qe7 {[%clk 0:01:59]} 17. e4 {[%clk 0:01:36]}  Bb7 {[%clk 0:01:58]} 18. Rfd1 {[%clk 0:01:36]}  Rac8 {[%clk 0:01:49]} 19. Rac1 {[%clk 0:01:19]}  Rfd8 {[%clk 0:01:48]} 20. Bf1 {[%clk 0:01:14]}  c5 {[%clk 0:01:44]} 21. Qd2 {[%clk 0:00:58]}  Kh8 {[%clk 0:01:37]} 22. Qf4 {[%clk 0:00:38]}  d5 {[%clk 0:01:35]} 23. exd5 {[%clk 0:00:32]}  Rxd5 {[%clk 0:01:34]} 24. Rxd5 {[%clk 0:00:30]}  Bxd5 {[%clk 0:01:35]} 25. bxc5 {[%clk 0:00:30]}  Rxc5 {[%clk 0:01:31]} 26. Rd1 {[%clk 0:00:21]}  Bg8 {[%clk 0:01:15]} 27. h4 {[%clk 0:00:17]}  Rc2 {[%clk 0:01:13]} 28. Bd4 {[%clk 0:00:16]}  Ng6 {[%clk 0:01:06]} 29. Qg3 {[%clk 0:00:14]}  Qc7 {[%clk 0:00:58]} 30. Qxc7 {[%clk 0:00:11]}  Rxc7 {[%clk 0:00:59]} 31. h5 {[%clk 0:00:12]}  Nf8 {[%clk 0:00:48]} 32. h6 {[%clk 0:00:12]}  Rd7 {[%clk 0:00:48]} 33. hxg7+ {[%clk 0:00:11]}  Kxg7 {[%clk 0:00:47]} 34. Rd2 {[%clk 0:00:11]}  Be6 {[%clk 0:00:45]} 35. Kf2 {[%clk 0:00:10]}  Kf7 {[%clk 0:00:44]} 36. Ke3 {[%clk 0:00:09]}  Ng6 {[%clk 0:00:43]} 37. Bd3 {[%clk 0:00:08]}  Re7 {[%clk 0:00:38]} 38. Bxg6+ {[%clk 0:00:07]}  hxg6 {[%clk 0:00:36]} 39. Kf2 {[%clk 0:00:08]}  Rc7 {[%clk 0:00:35]} 40. Ke3 {[%clk 0:00:06]}  Rc4 {[%clk 0:00:33]} 41. Rd3 {[%clk 0:00:06]}  Rc2 {[%clk 0:00:30]} 42. Rc3 {[%clk 0:00:06]}  Rxg2 {[%clk 0:00:23]} 43. Rc7+ {[%clk 0:00:06]}  Kg8 {[%clk 0:00:23]} 44. Rxa7 {[%clk 0:00:07]}  f5 {[%clk 0:00:21]} 45. Bxb6 {[%clk 0:00:04]}  g5 {[%clk 0:00:22]} 46. Bd4 {[%clk 0:00:04]}  Bd5 {[%clk 0:00:21]} 47. Rg7+ {[%clk 0:00:02]}  Kf8 {[%clk 0:00:21]} 48. f4 {[%clk 0:00:03]}  g4 {[%clk 0:00:19]} 49. Rg5 {[%clk 0:00:02]}  Be4 {[%clk 0:00:19]} 50. a4 {[%clk 0:00:01]}  Rg3+ {[%clk 0:00:18]} 51. Ke2 {[%clk 0:00:01]}  Ra3 {[%clk 0:00:17]} 52. Be5 {[%clk 0:00:01]}  Kf7 {[%clk 0:00:17]} 53. Kf2 {[%clk 0:00:02]}  Rxa4 {[%clk 0:00:16]} 54. Rg7+ {[%clk 0:00:01]}  Ke6 {[%clk 0:00:16]} 55. Rc7 {[%clk 0:00:01]}  Ra2+ {[%clk 0:00:16]} 56. Ke3 {[%clk 0:00:01]}  Rh2 {[%clk 0:00:15]} 0-1


[Site "https://www.chess.com"]